bitfinex-derivatives/quotes_BTCF0:USTF0_20250823
["timestamp","ask_amount","ask_price","bid_price","bid_amount"]
[1755927468970,1.75586169,116050.0,116040.0,0.08281659]
[1755927469575,1.75586169,116050.0,116040.0,0.18104913]
[1755927471075,1.25068227,116050.0,116040.0,0.18104913]
[1755927471279,1.75586169,116050.0,116040.0,0.18104913]
[1755927472386,1.75586169,116050.0,116040.0,0.19115572]
[1755927472981,1.75586169,116050.0,116040.0,0.14388572]
[1755927473186,2.00586169,116050.0,116040.0,0.12044572]
[1755927473589,2.00586169,116050.0,116040.0,0.12044639]
[1755927473986,2.00586169,116050.0,116040.0,0.12044647]
[1755927475582,2.00686169,116050.0,116040.0,0.11944647]
[1755927476791,2.00686169,116050.0,116040.0,0.14281647]
[1755927477285,1.50168227,116050.0,116040.0,0.14281647]
[1755927477491,2.00686169,116050.0,116040.0,0.14281647]
[1755927477686,2.00686169,116050.0,116040.0,0.03447734]
[1755927478892,1.75686169,116050.0,116040.0,0.03447734]
[1755927479694,1.75686169,116050.0,116040.0,0.03547734]
[1755927480395,1.75686169,116050.0,116040.0,0.11290472]
[1755927480590,1.75686169,116050.0,116040.0,0.11190472]
[1755927481591,1.75686169,116050.0,116040.0,0.10179738]
[1755927481789,1.25168227,116050.0,116040.0,0.11190466]
[1755927482095,1.75686169,116050.0,116040.0,0.11190466]
[1755927483096,1.75586169,116050.0,116040.0,0.11190466]
[1755927483299,1.25068227,116050.0,116040.0,0.11190466]
[1755927483594,1.75586169,116050.0,116040.0,0.11290466]
[1755927483800,1.75686169,116050.0,116040.0,0.11290466]
[1755927484395,1.75686169,116050.0,116040.0,0.11190466]
[1755927490100,1.75686169,116050.0,116040.0,0.11290466]
[1755927490500,1.75686169,116050.0,116040.0,0.10279738]
[1755927490702,1.75686169,116050.0,116040.0,0.11290465]
[1755927490906,2.51204111,116050.0,116040.0,0.14947053]
[1755927491094,2.00686169,116050.0,116040.0,0.07204322]
[1755927491296,2.00686169,116050.0,116040.0,0.07204333]
[1755927493599,2.00686169,116050.0,116040.0,0.09529333]
[1755927496604,2.00686169,116050.0,116040.0,0.09529322]
[1755927496902,1.75570169,116050.0,116040.0,0.63306676]
[1755927497104,1.75570169,116050.0,116040.0,0.71049414]
[1755927497307,1.75570169,116050.0,116040.0,0.20531472]
[1755927498808,1.75470169,116050.0,116040.0,0.20531472]
[1755927499194,1.75470169,116050.0,116040.0,0.12788734]
[1755927499595,1.75470169,116050.0,116040.0,0.11778]
[1755927499807,1.75470169,116050.0,116040.0,0.12888675]
[1755927500206,1.24952227,116050.0,116040.0,0.12888675]
[1755927500406,1.75470169,116050.0,116040.0,0.12888675]
[1755927500706,1.75470169,116050.0,116040.0,0.12788675]
[1755927500906,1.75470169,116050.0,116040.0,0.23722588]
[1755927501106,1.75470169,116050.0,116040.0,0.7424053]
[1755927502702,1.75470169,116050.0,116040.0,0.73229855]
[1755927502907,1.75470169,116050.0,116040.0,0.74240546]
[1755927503306,1.75470169,116050.0,116040.0,0.63406633]
[1755927503706,1.24952227,116050.0,116040.0,0.74243985]
[1755927504210,1.24952717,116050.0,116040.0,0.82865335]
[1755927505012,1.16332107,116050.0,116040.0,0.82865335]
[1755927505611,1.16332107,116050.0,116040.0,0.828653]
[1755927506309,1.16332107,116050.0,116040.0,0.29253086]
[1755927506508,1.16332107,116050.0,116040.0,0.79771028]
[1755927507804,1.24952717,116050.0,116040.0,0.79771028]
[1755927508611,1.24952717,116050.0,116040.0,0.78760372]
[1755927508804,1.24952717,116050.0,116040.0,0.72027948]
[1755927509214,1.24952717,116050.0,116040.0,0.73038604]
[1755927509408,1.24952717,116050.0,116040.0,0.72027948]
[1755927510415,1.24944717,116050.0,116040.0,0.72027948]
[1755927510615,1.24944717,116050.0,116040.0,0.828653]
[1755927511413,1.24944717,116050.0,116040.0,0.72027948]
[1755927511815,1.24944717,116050.0,116040.0,0.828653]
[1755927512219,1.24944717,116050.0,116040.0,0.79766898]
[1755927512614,1.24944717,116050.0,116040.0,0.72027948]
[1755927516921,1.16324107,116050.0,116040.0,0.72027948]
[1755927517321,1.16324107,116050.0,116040.0,0.79766898]
[1755927517623,1.16324107,116050.0,116040.0,0.78756242]
[1755927517811,1.16324107,116050.0,116040.0,0.79766899]
[1755927518314,1.16324107,116050.0,116040.0,0.29248957]
[1755927518514,1.16324107,116050.0,116040.0,0.79766899]
[1755927518811,0.37068107,116050.0,116040.0,0.79766899]
[1755927519221,0.00988107,116050.0,116040.0,0.20627607]
[1755927519414,0.3865,116060.0,116050.0,0.10919]
[1755927519622,0.41001149,116060.0,116050.0,0.12908657]
[1755927519814,0.41001149,116060.0,116050.0,0.20647607]
[1755927520121,0.41001149,116060.0,116050.0,0.71165549]
[1755927520317,0.41001149,116060.0,116050.0,0.12908657]
[1755927520524,0.41001149,116060.0,116050.0,0.20645752]
[1755927520828,0.41001149,116060.0,116050.0,0.15806716]
[1755927521124,0.49620929,116060.0,116050.0,0.62578658]
[1755927521525,1.00138871,116060.0,116050.0,0.64712658]
[1755927521822,1.00238871,116060.0,116050.0,0.71163658]
[1755927522023,0.49720929,116060.0,116050.0,0.71163658]
[1755927522825,0.49720929,116060.0,116050.0,0.63426563]
[1755927524526,0.49720929,116060.0,116050.0,0.05935621]
[1755927524724,1.00238871,116060.0,116050.0,0.03344621]
[1755927525124,1.2725172,116060.0,116050.0,0.08752244]
[1755927525324,0.76733778,116060.0,116050.0,0.08752244]
[1755927525526,1.2725172,116060.0,116050.0,0.08752244]
[1755927525722,0.76733778,116060.0,116050.0,0.11086244]
[1755927525920,1.2725172,116060.0,116050.0,0.11086244]
[1755927526322,0.76733778,116060.0,116050.0,0.11086244]
[1755927526824,0.76733778,116060.0,116050.0,0.11086317]
[1755927527529,0.76733778,116060.0,116050.0,0.12065317]
[1755927528832,0.76733778,116060.0,116050.0,0.04323694]
[1755927529226,0.38531149,116060.0,116050.0,1.03820787]
[1755927529423,1.99974,116080.0,116070.0,0.11898]
[1755927529627,2.9237653,116080.0,116070.0,0.23746046]
[1755927529830,2.9482553,116080.0,116070.0,0.23746046]
[1755927530432,2.86207,116080.0,116070.0,0.23746046]
[1755927530929,2.88682523,116080.0,116070.0,0.23746046]
[1755927531424,2.88682523,116080.0,116070.0,0.12908694]
[1755927531625,2.97301053,116080.0,116070.0,0.12908694]
[1755927531825,2.97401053,116080.0,116070.0,0.12908694]
[1755927533029,2.97401053,116080.0,116070.0,0.20630393]
[1755927535733,2.97401053,116080.0,116070.0,0.12908694]
[1755927536129,2.97401053,116080.0,116070.0,0.12908435]
[1755927538134,2.97401053,116080.0,116070.0,0.06457435]
[1755927542734,2.97401053,116080.0,116070.0,0.04323435]
[1755927543237,2.97401053,116080.0,116070.0,0.10495547]
[1755927543832,3.3523843,116080.0,116070.0,0.07182547]
[1755927544037,3.6023843,116080.0,116070.0,0.06172112]
[1755927544239,3.6023843,116080.0,116070.0,0.07182623]
[1755927544837,3.6023843,116080.0,116070.0,0.07182628]
[1755927545738,3.6023843,116080.0,116070.0,0.03742628]
[1755927546539,3.6023843,116080.0,116070.0,0.01010516]
[1755927547240,3.6023843,116080.0,116070.0,0.03316516]
[1755927550743,0.0861929,116070.0,116060.0,0.02559911]
[1755927551044,0.0079,116050.0,116040.0,0.25846219]
[1755927551349,1.19914,116050.0,116040.0,0.1812452]
[1755927551534,1.1961,116050.0,116040.0,0.1812452]
[1755927552439,1.1961,116050.0,116040.0,0.6812452]
[1755927552843,1.1961,116050.0,116040.0,0.7043052]
[1755927553046,1.2823077,116050.0,116040.0,0.7043052]
[1755927553541,1.2823077,116050.0,116040.0,0.7053052]
[1755927554136,1.2823077,116050.0,116040.0,0.7063052]
[1755927557739,0.36566,116060.0,116050.0,0.2042977]
[1755927557933,1.1912,116060.0,116050.0,0.58267147]
[1755927558351,0.8304,116060.0,116050.0,0.58267147]
[1755927558851,0.8304,116060.0,116050.0,1.27963751]
[1755927559245,0.8304,116060.0,116050.0,1.38801103]
[1755927560352,0.8304,116060.0,116050.0,1.88801103]
[1755927560651,0.8304,116060.0,116050.0,1.50963726]
[1755927561859,0.83526,116060.0,116050.0,1.50963726]
[1755927562159,1.2853003,116060.0,116050.0,0.79046374]
[1755927562457,1.2822603,116060.0,116050.0,0.79046374]
[1755927562959,1.2822603,116060.0,116050.0,0.80056902]
[1755927563250,0.9214603,116060.0,116050.0,0.80056902]
[1755927564453,0.83526,116060.0,116050.0,0.80056902]
[1755927564654,0.83526,116060.0,116050.0,0.90894254]
[1755927568175,0.83526,116060.0,116050.0,1.28731631]
[1755927568675,0.83526,116060.0,116050.0,1.17894279]
[1755927568973,0.83526,116060.0,116050.0,1.28716134]
[1755927569673,0.83526,116060.0,116050.0,1.17894279]
[1755927570673,0.83526,116060.0,116050.0,0.80056902]
[1755927570973,0.83526,116060.0,116050.0,1.28716927]
[1755927571376,0.83526,116060.0,116050.0,1.28716903]
[1755927571775,0.83526,116060.0,116050.0,1.17894255]
[1755927571976,0.47097758,116070.0,116060.0,0.2064903]
[1755927572270,1.30497758,116070.0,116060.0,0.29390412]
[1755927572775,1.30497758,116070.0,116060.0,0.20770382]
[1755927572978,1.30497758,116070.0,116060.0,0.11996382]
[1755927573175,1.30597758,116070.0,116060.0,0.11996382]
[1755927573368,1.30697758,116070.0,116060.0,0.14265382]
[1755927573874,1.30697758,116070.0,116060.0,0.17758382]
[1755927574676,1.30697758,116070.0,116060.0,0.19248382]
[1755927575071,1.30697758,116070.0,116060.0,0.20770382]
[1755927576265,1.30697758,116070.0,116060.0,0.08056504]
[1755927576575,1.30697758,116070.0,116060.0,0.11549504]
[1755927576784,1.30697758,116070.0,116060.0,0.13039504]
[1755927580276,1.30697758,116070.0,116060.0,0.12029]
[1755927580469,1.30697758,116070.0,116060.0,0.13039511]
[1755927581067,1.30697758,116070.0,116060.0,0.21659541]
[1755927581677,1.22078048,116070.0,116060.0,0.21659541]
[1755927581878,1.30393338,116070.0,116060.0,0.21659541]
[1755927582376,1.21774048,116070.0,116060.0,0.21659541]
[1755927582874,1.21850048,116070.0,116060.0,0.21659541]
[1755927583569,1.21850048,116070.0,116060.0,0.21659496]
[1755927583775,1.21850048,116070.0,116060.0,0.59496873]
[1755927584074,1.21850048,116070.0,116060.0,0.21659496]
[1755927584575,1.30469338,116070.0,116060.0,0.21659496]
[1755927586772,1.30469338,116070.0,116060.0,0.29390374]
[1755927588783,0.94389338,116070.0,116060.0,0.29390374]
[1755927589279,0.94389338,116070.0,116060.0,0.28379908]
[1755927589577,0.94389338,116070.0,116060.0,0.21659488]
[1755927590180,1.30469338,116070.0,116060.0,0.29397117]
[1755927591982,1.30773338,116070.0,116060.0,0.21659488]
[1755927592379,1.30469338,116070.0,116060.0,0.21659488]
[1755927593984,1.30773338,116070.0,116060.0,0.21659488]
[1755927595682,1.30773338,116070.0,116060.0,0.21659497]
[1755927597886,1.30773338,116070.0,116060.0,0.29397126]
[1755927598282,1.30773338,116070.0,116060.0,0.6722226]
[1755927598481,1.30773338,116070.0,116060.0,0.58474164]
[1755927598681,1.30773338,116070.0,116060.0,0.21659506]
[1755927598885,1.30773338,116070.0,116060.0,0.5948464]
[1755927599285,1.30773338,116070.0,116060.0,0.67222269]
[1755927599884,1.30773338,116070.0,116060.0,0.5948464]
[1755927600489,1.30773338,116070.0,116060.0,0.67222269]
[1755927600983,1.30773338,116070.0,116060.0,0.5948464]
[1755927601189,1.30773338,116070.0,116060.0,0.21659506]
[1755927601488,1.30773338,116070.0,116060.0,0.5948464]
[1755927602885,1.30773338,116070.0,116060.0,0.21659506]
[1755927603086,1.30773338,116070.0,116060.0,0.5086461]
[1755927603289,1.30773338,116070.0,116060.0,0.4114861]
[1755927603483,1.68598472,116070.0,116060.0,0.05036984]
[1755927603789,1.68598472,116070.0,116060.0,0.02723984]
[1755927604289,1.68598472,116070.0,116060.0,0.05193984]
[1755927604486,1.68598472,116070.0,116060.0,0.02723984]
[1755927604686,1.93598472,116070.0,116060.0,0.10461613]
[1755927604888,1.93598472,116070.0,116060.0,0.02723984]
[1755927605488,1.55773338,116070.0,116060.0,0.02723984]
[1755927605792,1.93678472,116070.0,116060.0,0.02723984]
[1755927606493,1.93678472,116070.0,116060.0,0.01713508]
[1755927606698,1.55853338,116070.0,116060.0,0.02724031]
[1755927606996,1.93678472,116070.0,116060.0,0.02724031]
[1755927607191,1.55853338,116070.0,116060.0,0.1354726]
[1755927607391,1.93678472,116070.0,116060.0,0.1354726]
[1755927607790,1.93598472,116070.0,116060.0,0.20981491]
[1755927608095,1.93678472,116070.0,116060.0,0.10158262]
[1755927608499,1.93678472,116070.0,116060.0,0.08748754]
[1755927609096,1.93598472,116070.0,116060.0,0.08748754]
[1755927610400,1.93612467,116070.0,116060.0,0.08748754]
[1755927612698,1.93612467,116070.0,116060.0,0.01010523]
[1755927615598,0.0862003,116060.0,116050.0,0.11203231]
[1755927615900,0.4470003,116060.0,116050.0,0.12213837]
[1755927618206,0.4470003,116060.0,116050.0,0.04475606]
[1755927619498,0.82539159,116060.0,116050.0,0.01010606]
[1755927619897,1.07539159,116060.0,116050.0,0.01010606]
[1755927620094,0.0862077,116050.0,116040.0,0.10208231]
[1755927620299,0.0862077,116050.0,116040.0,0.112189]
[1755927620300,1.66007899,116050.0,116040.0,0.112189]
[1755927620505,1.66007899,116050.0,116040.0,0.03480669]
[1755927621606,1.66007899,116050.0,116040.0,0.0247]
[1755927621808,0.1361252,116040.0,116030.0,0.0611998]
[1755927622004,0.1462426,116030.0,116020.0,0.1438298]
[1755927622300,1.3422026,116030.0,116020.0,0.1438298]
[1755927623300,1.3422026,116030.0,116020.0,0.1458298]
[1755927623504,1.3422026,116030.0,116020.0,0.6478298]
[1755927623707,1.3422026,116030.0,116020.0,0.6870098]
[1755927624206,1.72059389,116030.0,116020.0,0.54656329]
[1755927624402,1.97059389,116030.0,116020.0,0.2815242]
[1755927624809,1.97059389,116030.0,116020.0,0.2724042]
[1755927625009,1.97059389,116030.0,116020.0,0.20257494]
[1755927625201,1.97059389,116030.0,116020.0,0.002]
[1755927625809,1.97059389,116030.0,116020.0,0.003]
[1755927626004,1.5922026,116030.0,116020.0,0.003]
[1755927626205,0.0862368,116010.0,116000.0,0.15361926]
[1755927626405,1.2832768,116010.0,116000.0,0.16809926]
[1755927626910,1.2832768,116010.0,116000.0,0.14919926]
[1755927627210,1.2832768,116010.0,116000.0,0.18107926]
[1755927627710,1.2832768,116010.0,116000.0,0.12126]
[1755927628511,1.2832768,116010.0,116000.0,0.08938]
[1755927629105,1.2832768,116010.0,116000.0,0.12126]
[1755927629608,1.32737487,116010.0,116000.0,0.12126]
[1755927630906,1.70576616,116010.0,116000.0,0.08851926]
[1755927631306,1.70576616,116010.0,116000.0,0.09799926]
[1755927631915,1.70576616,116010.0,116000.0,0.08851926]
[1755927632114,1.70576616,116010.0,116000.0,0.09862993]
[1755927632314,1.70576616,116010.0,116000.0,0.03681067]
[1755927632615,1.70576616,116010.0,116000.0,0.04629067]
[1755927632915,1.70676616,116010.0,116000.0,0.04529067]
[1755927633518,1.70676616,116010.0,116000.0,0.03481067]
[1755927633707,1.70776616,116010.0,116000.0,0.03481067]
[1755927634616,1.70776616,116010.0,116000.0,0.04429067]
[1755927635314,1.70776616,116010.0,116000.0,0.06605067]
[1755927635808,1.32937487,116010.0,116000.0,0.12941067]
[1755927636613,1.32837487,116010.0,116000.0,0.12941067]
[1755927637010,1.32737487,116010.0,116000.0,0.12941067]
[1755927642322,1.70576616,116010.0,116000.0,0.12941067]
[1755927642818,1.70576616,116010.0,116000.0,0.12941068]
[1755927643520,1.70576616,116010.0,116000.0,0.09753068]
[1755927643912,1.70576616,116010.0,116000.0,0.08270068]
[1755927646423,1.70576616,116010.0,116000.0,0.11458068]
[1755927647421,1.32737487,116010.0,116000.0,0.11458068]
[1755927648726,1.32737487,116010.0,116000.0,0.12941068]
[1755927650425,1.70610511,116010.0,116000.0,0.12941068]
[1755927652032,1.32737487,116010.0,116000.0,0.12941072]
[1755927652218,1.70610511,116010.0,116000.0,0.12941072]
[1755927652418,1.70610511,116010.0,116000.0,0.19122996]
[1755927653229,1.32737487,116010.0,116000.0,0.19122996]
[1755927653525,1.70610511,116010.0,116000.0,0.15934996]
[1755927653822,1.70610511,116010.0,116000.0,0.14451996]
[1755927654929,1.70610511,116010.0,116000.0,0.13440926]
[1755927655125,1.70610511,116010.0,116000.0,0.14451997]
[1755927656322,1.70610511,116010.0,116000.0,0.10610997]
[1755927657930,1.70610511,116010.0,116000.0,0.10611011]
[1755927658425,1.70610511,116010.0,116000.0,0.07193011]
[1755927659332,1.70610511,116010.0,116000.0,0.09595011]
[1755927659932,1.70610511,116010.0,116000.0,0.07193011]
[1755927660137,1.70710511,116010.0,116000.0,0.07193011]
[1755927660631,1.70710511,116010.0,116000.0,0.09595011]
[1755927660932,1.70710511,116010.0,116000.0,0.09595021]
[1755927661233,1.70810511,116010.0,116000.0,0.09595021]
[1755927661633,2.06890511,116010.0,116000.0,0.09595021]
[1755927669137,2.06890511,116010.0,116000.0,0.09595055]
[1755927670633,2.06890511,116010.0,116000.0,0.03413129]
[1755927673636,2.06890511,116010.0,116000.0,0.03280733]
[1755927673943,2.07022511,116010.0,116000.0,0.03280733]
[1755927675341,2.07022511,116010.0,116000.0,0.10986112]
[1755927676043,2.07022511,116010.0,116000.0,0.03280733]
[1755927676339,2.07022511,116010.0,116000.0,0.10986112]
[1755927676547,2.07022511,116010.0,116000.0,0.03280733]
[1755927676737,2.07022511,116010.0,116000.0,0.10986112]
[1755927677643,2.07022511,116010.0,116000.0,0.03615219]
[1755927678648,2.07022511,116010.0,116000.0,0.01555218]
[1755927679845,0.086244,116000.0,115990.0,0.07052]
[1755927680149,0.86610424,116000.0,115990.0,0.10154]
[1755927680548,0.86610424,116000.0,115990.0,0.0699]
[1755927680749,0.86610424,116000.0,115990.0,0.10154]
[1755927683946,1.26208643,116000.0,115990.0,0.02402]
[1755927684152,0.1265813,115990.0,115980.0,0.1357013]
[1755927684353,1.69167154,115990.0,115980.0,0.1357013]
[1755927685845,1.69167154,115990.0,115980.0,0.1367013]
[1755927687048,1.69167154,115990.0,115980.0,0.11883]
[1755927687942,1.3129413,115990.0,115980.0,0.19635028]
[1755927688150,1.69167154,115990.0,115980.0,0.19635028]
[1755927690153,1.3129413,115990.0,115980.0,0.19635028]
[1755927690351,1.69167154,115990.0,115980.0,0.19635028]
[1755927690760,1.3129413,115990.0,115980.0,0.19635028]
[1755927691152,1.69167154,115990.0,115980.0,0.14985028]
[1755927691859,1.69167154,115990.0,115980.0,0.18387028]
[1755927692358,1.69167154,115990.0,115980.0,0.13456028]
[1755927695056,1.69167154,115990.0,115980.0,0.05704]
[1755927695462,1.69167154,115990.0,115980.0,0.09106]
[1755927695653,1.69167154,115990.0,115980.0,0.13456028]
[1755927695958,1.69167154,115990.0,115980.0,0.05704]
[1755927696360,1.3129413,115990.0,115980.0,0.09106]
[1755927696557,1.69167154,115990.0,115980.0,0.09106]
[1755927696756,1.69167154,115990.0,115980.0,0.05704]
[1755927698767,1.69167154,115990.0,115980.0,0.09106]
[1755927699264,1.69167154,115990.0,115980.0,0.16858028]
[1755927701163,1.69167154,115990.0,115980.0,0.13456028]
[1755927701366,1.69167154,115990.0,115980.0,0.11293028]
[1755927701561,1.69167154,115990.0,115980.0,0.13512028]
[1755927702760,1.69167154,115990.0,115980.0,0.0576]
[1755927703870,1.69167154,115990.0,115980.0,0.13512028]
[1755927704168,1.69167154,115990.0,115980.0,0.0576]
[1755927704569,2.05247154,115990.0,115980.0,0.0576]
[1755927704962,1.6737413,115990.0,115980.0,0.0576]
[1755927705157,2.05247154,115990.0,115980.0,0.0576]
[1755927708366,2.05247154,115990.0,115980.0,0.03541]
[1755927709766,2.05247154,115990.0,115980.0,0.11293028]
[1755927712676,1.6737413,115990.0,115980.0,0.11293028]
[1755927712879,2.05247154,115990.0,115980.0,0.11293028]
[1755927714280,2.05247154,115990.0,115980.0,0.03541]
[1755927714777,2.05247154,115990.0,115980.0,0.11293028]
[1755927715372,1.6737413,115990.0,115980.0,0.13512028]
[1755927715681,2.05247154,115990.0,115980.0,0.13512028]
[1755927715870,2.05247154,115990.0,115980.0,0.03541]
[1755927716075,2.05247154,115990.0,115980.0,0.11293028]
[1755927716379,2.05247154,115990.0,115980.0,0.13512028]
[1755927717083,1.6737413,115990.0,115980.0,0.16914028]
[1755927717376,2.05247154,115990.0,115980.0,0.13512028]
[1755927718078,2.05247154,115990.0,115980.0,0.16854028]
[1755927718379,2.05247154,115990.0,115980.0,0.13512028]
[1755927720281,2.05247154,115990.0,115980.0,0.0576]
[1755927723592,2.05247154,115990.0,115980.0,0.03541]
[1755927729101,2.05247154,115990.0,115980.0,0.02602]
[1755927734186,2.05247154,115990.0,115980.0,0.002]
[1755927736389,2.05247154,115990.0,115980.0,0.07952028]
[1755927736900,2.05247154,115990.0,115980.0,0.002]
[1755927739902,0.1249688,115980.0,115970.0,0.05312671]
[1755927740101,0.86449904,115980.0,115970.0,0.232719]
[1755927740402,0.4857688,115980.0,115970.0,0.248949]
[1755927740602,0.86449904,115980.0,115970.0,0.248949]
[1755927741197,0.86449904,115980.0,115970.0,0.250949]
[1755927741396,0.86449904,115980.0,115970.0,0.252949]
[1755927741902,0.86449904,115980.0,115970.0,0.14471671]
[1755927742102,0.88218461,115980.0,115970.0,0.14471671]
[1755927742602,0.4857688,115980.0,115970.0,0.14471671]
[1755927742802,0.86449904,115980.0,115970.0,0.14471671]
[1755927744098,0.86449904,115980.0,115970.0,0.22235414]
[1755927744603,0.88220237,115980.0,115970.0,0.22235414]
[1755927745306,1.67168237,115980.0,115970.0,0.22235414]
[1755927745600,1.69436237,115980.0,115970.0,0.22235414]
[1755927746504,1.33356237,115980.0,115970.0,0.22235414]
[1755927746703,1.69436237,115980.0,115970.0,0.22235414]
[1755927753010,1.31563213,115980.0,115970.0,0.22235414]
[1755927753206,1.69436237,115980.0,115970.0,0.22235414]
[1755927753608,1.31563213,115980.0,115970.0,0.22235414]
[1755927753803,1.69436237,115980.0,115970.0,0.22235414]
[1755927755113,1.31563213,115980.0,115970.0,0.22235414]
[1755927755407,1.69436237,115980.0,115970.0,0.22235414]
[1755927755813,1.69436237,115980.0,115970.0,0.14471671]
[1755927756004,0.88220237,115980.0,115970.0,0.22235108]
[1755927756204,1.29235213,115980.0,115970.0,0.60108132]
[1755927756513,0.93155213,115980.0,115970.0,0.52344695]
[1755927759011,0.01770333,115980.0,115970.0,0.94593872]
[1755927759212,0.39630195,116000.0,115990.0,0.03808]
[1755927759516,0.48413045,116000.0,115990.0,0.58335164]
[1755927759701,1.29565045,116000.0,115990.0,0.58335164]
[1755927760108,0.93485045,116000.0,115990.0,0.58335164]
[1755927760309,0.93485045,116000.0,115990.0,0.7780104]
[1755927760507,0.93585045,116000.0,115990.0,0.7780104]
[1755927761112,0.12433045,116000.0,115990.0,0.7780104]
[1755927761313,0.93585045,116000.0,115990.0,0.7780104]
[1755927761502,0.93585045,116000.0,115990.0,0.7790104]
[1755927761701,0.93485045,116000.0,115990.0,0.7790104]
[1755927761911,0.12333045,116000.0,115990.0,0.7790104]
[1755927762114,0.93485045,116000.0,115990.0,0.7790104]
[1755927762408,0.12175045,116000.0,115990.0,0.7790104]
[1755927762608,0.91494045,116000.0,115990.0,0.7790104]
[1755927763308,0.91494045,116000.0,115990.0,1.1388104]
[1755927763509,0.91494045,116000.0,115990.0,1.1398104]
[1755927765215,0.91494045,116000.0,115990.0,1.03136225]
[1755927765418,0.81144,116000.0,115990.0,1.30025821]
[1755927765606,0.81144,116000.0,115990.0,1.50870636]
[1755927766115,0.81144,116000.0,115990.0,1.51881592]
[1755927766310,0.49271777,116010.0,115990.0,1.94788592]
[1755927766607,0.51096777,116010.0,116000.0,0.11837]
[1755927766914,0.50938777,116010.0,116000.0,0.5072098]
[1755927767109,1.32232777,116010.0,116000.0,0.5072098]
[1755927767309,1.32232777,116010.0,116000.0,0.67965698]
[1755927767508,1.32232777,116010.0,116000.0,0.7569376]
[1755927767912,1.32232777,116010.0,116000.0,0.74682804]
[1755927768114,1.32232777,116010.0,116000.0,0.67965698]
[1755927768313,1.32332777,116010.0,116000.0,0.75691949]
[1755927768515,1.32332777,116010.0,116000.0,0.87818925]
[1755927768715,1.32332777,116010.0,116000.0,1.25691949]
[1755927769717,0.96252777,116010.0,116000.0,1.25691949]
[1755927770317,0.96152777,116010.0,116000.0,1.25691949]
[1755927770713,0.96152777,116010.0,116000.0,0.87918925]
[1755927770916,0.96152777,116010.0,116000.0,1.25791949]
[1755927771117,0.96152777,116010.0,116000.0,1.25791944]
[1755927771816,0.95994777,116010.0,116000.0,1.25791944]
[1755927772014,0.96152777,116010.0,116000.0,1.25791944]
[1755927773317,0.96152777,116010.0,116000.0,1.24780993]
[1755927773518,0.96152777,116010.0,116000.0,0.8791892]
[1755927773720,0.96152777,116010.0,116000.0,1.25791944]
[1755927776322,0.96152777,116010.0,116000.0,1.18065693]
[1755927777322,0.96152777,116010.0,116000.0,1.25787236]
[1755927778020,0.96152777,116010.0,116000.0,1.25787234]
[1755927780424,0.98417777,116010.0,116000.0,1.25787234]
[1755927782527,0.98417777,116010.0,116000.0,0.8791421]
[1755927782728,0.98417777,116010.0,116000.0,1.25787234]
[1755927783421,0.96152777,116010.0,116000.0,1.25787234]
[1755927785229,0.15016777,116010.0,116000.0,1.25787234]
[1755927785530,0.96104777,116010.0,116000.0,1.2578721]
[1755927786230,0.96104777,116010.0,116000.0,0.87914186]
[1755927786430,0.96104777,116010.0,116000.0,1.2578721]
[1755927787430,0.96104777,116010.0,116000.0,1.18065667]
[1755927787731,0.96104777,116010.0,116000.0,1.25806579]
[1755927788528,0.96104777,116010.0,116000.0,1.25806577]
[1755927788830,0.96104777,116010.0,116000.0,1.18065665]
[1755927789230,0.96104777,116010.0,116000.0,1.25810855]
[1755927789426,0.96104777,116010.0,116000.0,1.18065665]
[1755927792130,0.96092777,116010.0,116000.0,1.18065665]
[1755927792536,0.15016777,116010.0,116000.0,1.18065665]
[1755927792736,0.96088777,116010.0,116000.0,1.18065665]
[1755927794033,0.87464807,116010.0,116000.0,1.18065665]
[1755927794238,0.87464807,116010.0,116000.0,0.90192641]
[1755927794435,0.87464807,116010.0,116000.0,1.28065665]
[1755927795037,0.4712559,116030.0,116000.0,2.27018689]
[1755927795336,1.30414489,116030.0,116020.0,0.58498914]
[1755927795541,1.30414489,116030.0,116020.0,0.70357904]
[1755927796042,0.94334489,116030.0,116020.0,0.78978222]
[1755927796440,0.94334489,116030.0,116020.0,1.28978222]
[1755927796742,0.94334489,116030.0,116020.0,0.91105198]
[1755927796934,0.94334489,116030.0,116020.0,1.28978222]
[1755927797131,0.13366489,116030.0,116020.0,1.18130155]
[1755927797331,0.94630489,116030.0,116020.0,1.18130155]
[1755927797642,0.94630489,116030.0,116020.0,1.24945498]
[1755927797842,0.94430489,116030.0,116020.0,1.24945498]
[1755927798042,0.13466489,116030.0,116020.0,1.24945498]
[1755927798343,0.94526489,116030.0,116020.0,1.32682257]
[1755927798744,0.94426489,116030.0,116020.0,1.32682257]
[1755927798938,0.13366489,116030.0,116020.0,1.32682257]
[1755927799139,0.85388899,116030.0,116020.0,1.32682257]
[1755927799446,0.85388899,116030.0,116020.0,1.24945498]
[1755927799835,0.04332899,116030.0,116020.0,1.35772845]
[1755927800039,0.85546899,116030.0,116020.0,1.35772845]
[1755927800542,0.85446899,116030.0,116020.0,1.24945498]
[1755927800746,0.85699899,116030.0,116020.0,1.24945498]
[1755927800940,0.85699899,116030.0,116020.0,1.35772845]
[1755927801545,0.94322049,116030.0,116020.0,1.24945498]
[1755927801745,0.13266049,116030.0,116020.0,1.25045498]
[1755927802042,0.94322049,116030.0,116020.0,1.25045498]
[1755927803147,0.96587049,116030.0,116020.0,1.32772658]
[1755927803746,0.96587049,116030.0,116020.0,1.32772446]
[1755927809157,0.96587049,116030.0,116020.0,0.94899422]
[1755927809356,0.96587049,116030.0,116020.0,1.32772446]
[1755927810354,0.96587049,116030.0,116020.0,0.94899422]
[1755927810553,0.96587049,116030.0,116020.0,1.32772446]
[1755927811856,0.96587049,116030.0,116020.0,1.30979422]
[1755927812155,0.96587049,116030.0,116020.0,1.32772446]
[1755927812355,0.96587049,116030.0,116020.0,1.68852446]
[1755927812546,0.96587049,116030.0,116020.0,1.68852432]
[1755927813257,0.96587049,116030.0,116020.0,1.68852431]
[1755927813956,0.87964899,116030.0,116020.0,1.68852431]
[1755927816352,0.87964899,116030.0,116020.0,1.61125271]
[1755927817255,0.85699899,116030.0,116020.0,1.61125271]
[1755927818557,0.922918,116040.0,116030.0,0.1570515]
[1755927818761,0.935778,116040.0,116030.0,0.5939887]
[1755927818962,0.84956,116040.0,116030.0,0.5939887]
[1755927819165,0.87522013,116040.0,116030.0,0.68017702]
[1755927819464,0.85264013,116040.0,116030.0,0.68017702]
[1755927819655,0.85264013,116040.0,116030.0,0.40972025]
[1755927819862,0.85264013,116040.0,116030.0,1.28845049]
[1755927820063,0.85264013,116040.0,116030.0,0.90972025]
[1755927820459,0.85264013,116040.0,116030.0,1.28845049]
[1755927821157,0.85364013,116040.0,116030.0,0.90972025]
[1755927821561,0.85364013,116040.0,116030.0,0.89961329]
[1755927821870,0.85364013,116040.0,116030.0,1.64925032]
[1755927822167,0.85364013,116040.0,116030.0,1.2705199]
[1755927822563,0.85364013,116040.0,116030.0,1.64925014]
[1755927823068,0.84194013,116040.0,116030.0,1.64925014]
[1755927823269,0.84663334,116060.0,116050.0,0.1333367]
[1755927823465,1.66207334,116060.0,116050.0,0.29259792]